bitfinex/quotes_ETHUSD_20241216
["timestamp","ask_amount","ask_price","bid_price","bid_amount"]
[1734376879598,8.76236054,4040.8,4038.7,3.8313]
[1734376880126,8.76236054,4042.0,4039.7,3.80143046]
[1734376880263,8.76236054,4041.8,4039.8,0.8233]
[1734376881513,11.36336054,4041.6,4038.7,0.8067]
[1734376881720,8.76236054,4040.7,4038.7,0.8067]
[1734376882010,11.23720054,4040.7,4038.7,0.8067]
[1734376882163,0.55,4040.6,4038.7,0.8067]
[1734376882370,0.93123605,4040.5,4038.7,0.8067]
[1734376884892,8.76236054,4040.7,4039.2,0.8206]
[1734376885102,3.35031605,4041.9,4039.2,3.8206]
[1734376885103,8.76236054,4040.6,4039.2,3.8206]
[1734376885404,0.87623605,4041.9,4039.8,0.8206]
[1734376885405,8.76236054,4041.5,4039.8,0.8206]
[1734376886414,8.76236054,4041.4,4040.2,3.0]
[1734376886615,8.76236054,4041.4,4040.3,0.8118]
[1734376886974,0.988721,4042.8,4040.6,3.80143046]
[1734376886975,8.76236054,4042.6,4040.6,3.80143046]
[1734376887213,8.76236054,4042.5,4040.7,3.7551]
[1734376887816,8.76236054,4042.5,4040.7,3.7051]
[1734376888176,8.76236054,4042.5,4040.7,3.0]
[1734376890297,0.05,4043.1,4040.1,3.0]
[1734376890298,8.76236054,4042.3,4040.1,3.0]
[1734376890510,0.55,4042.2,4040.1,3.0]
[1734376890827,8.76236054,4041.9,4040.2,0.751]
[1734376891230,8.76236054,4041.8,4040.2,0.751]
[1734376891432,0.93623605,4042.1,4039.7,0.751]
[1734376891433,0.55,4041.5,4039.7,0.751]
[1734376891730,0.55,4041.5,4036.8,2.04276345]
[1734376891731,9.31236054,4040.7,4038.3,0.751]
[1734376891882,9.31236054,4040.7,4036.3,0.25]
[1734376891883,0.12615316,4040.4,4038.9,3.80143046]
[1734376892090,0.12615316,4040.4,4039.0,0.751]
[1734376892284,8.76236054,4040.6,4039.0,0.751]
[1734376892510,0.88123605,4040.5,4039.0,0.751]
[1734376893841,1.00186499,4040.5,4039.0,0.751]
[1734376893998,0.55,4040.2,4039.0,0.73910145]
[1734376895024,8.76236054,4040.1,4039.0,0.73910145]
[1734376895345,8.76236054,4040.4,4039.0,0.73910145]
[1734376895644,8.76236054,4040.4,4039.0,1.19315464]
[1734376895795,8.76236054,4040.4,4039.0,4.19315464]
[1734376896000,8.76236054,4040.4,4039.0,3.73910145]
[1734376900004,8.76236054,4040.3,4039.0,0.73910145]
[1734376900213,0.0619,4040.2,4039.0,0.73910145]
[1734376902823,8.76236054,4040.3,4039.0,0.73910145]
[1734376903002,8.76236054,4040.2,4039.0,0.45405319]
[1734376903202,8.76236054,4040.5,4039.1,0.832]
[1734376903559,8.76236054,4040.5,4039.6,0.832]
[1734376905109,8.76236054,4041.4,4039.6,0.832]
[1734376905520,0.84374306,4041.3,4039.6,0.832]
[1734376905802,8.76236054,4041.3,4040.1,0.7833]
[1734376906233,8.76236054,4042.0,4040.5,0.7833]
[1734376906613,8.76236054,4042.0,4040.6,0.7951]
[1734376908130,1.3927246,4041.9,4040.6,0.7951]
[1734376908454,8.76236054,4041.6,4039.5,0.7927]
[1734376908653,2.10634201,4041.5,4039.5,0.7927]
[1734376908874,9.78082942,4041.6,4039.5,0.7927]
[1734376909077,0.84238926,4041.5,4039.5,0.7927]
[1734376909291,8.76236054,4041.6,4039.5,0.7927]
[1734376909426,8.76236054,4041.6,4040.0,0.7927]
[1734376909427,1.02288513,4041.5,4040.0,0.7927]
[1734376910272,8.76236054,4041.6,4039.4,3.80143046]
[1734376910273,8.76236054,4041.6,4040.6,0.7927]
[1734376910965,8.76236054,4042.0,4040.6,3.7927]
[1734376911121,8.76236054,4042.3,4041.2,0.7927]
[1734376912068,1.01846888,4042.9,4039.7,1.02138172]
[1734376912069,11.99296054,4042.2,4039.7,1.02138172]
[1734376912371,11.99296054,4042.2,4039.5,3.80143046]
[1734376912372,9.60516681,4042.1,4039.5,3.80143046]
[1734376912531,3.61946888,4041.9,4039.5,3.80143046]
[1734376912733,0.7567,4041.5,4039.5,3.80143046]
[1734376913142,9.31236054,4041.3,4039.5,3.80143046]
[1734376913347,1.09116835,4041.2,4039.5,3.80143046]
[1734376913973,1.09116835,4041.2,4039.6,3.0]
[1734376915057,1.09116835,4041.2,4039.7,0.7695]
[1734376916672,1.09116835,4041.2,4040.1,0.8168]
[1734376916855,8.76236054,4041.3,4040.1,3.8168]
[1734376918189,8.76236054,4041.2,4040.1,3.8168]
[1734376918693,8.76236054,4041.2,4040.2,0.7586]
[1734376918900,8.76236054,4042.1,4040.9,0.7586]
[1734376919060,0.87623605,4042.0,4040.9,0.7586]
[1734376919374,2.47438,4041.5,4039.6,3.7586]
[1734376919578,9.78082942,4041.7,4039.6,0.7586]
[1734376919782,8.76236054,4040.8,4039.6,0.7586]
[1734376919993,1.20244005,4040.7,4039.6,0.7586]
[1734376920664,9.31236054,4040.5,4038.6,0.8114]
[1734376920976,0.83260962,4040.4,4038.6,0.8114]
[1734376921488,9.31236054,4040.5,4038.6,0.8114]
[1734376921641,0.83281585,4040.4,4038.6,0.8114]
[1734376921994,9.31236054,4040.5,4038.6,0.8114]
[1734376922298,9.31236054,4040.5,4039.1,0.8018]
[1734376922299,8.76236054,4040.5,4039.1,0.8018]
[1734376922796,8.76236054,4040.5,4039.1,3.8018]
[1734376922955,8.76236054,4040.5,4039.1,0.8018]
[1734376923541,0.83285379,4040.4,4039.1,0.8018]
[1734376923739,1.06136832,4040.3,4039.1,0.8018]
[1734376923955,8.76236054,4040.2,4039.1,0.8018]
[1734376924176,8.76236054,4040.2,4039.4,3.80143046]
[1734376924378,8.76236054,4040.7,4039.5,3.0]
[1734376924590,9.63859659,4040.7,4039.6,0.7506]
[1734376924791,8.76236054,4041.5,4039.6,0.7506]
[1734376924998,8.76236054,4041.4,4039.6,0.7506]
[1734376925641,9.78082942,4041.7,4039.6,0.7506]
[1734376925843,1.13085327,4041.6,4040.1,3.8002]
[1734376926499,1.13085327,4041.6,4040.2,0.8002]
[1734376928367,1.13085327,4041.6,4040.7,3.0]
[1734376928568,1.13085327,4041.6,4040.8,0.7949]
[1734376929004,8.76236054,4041.5,4039.6,0.8049]
[1734376929218,1.90235825,4041.4,4039.6,0.8049]
[1734376929364,1.06938138,4041.4,4039.6,0.8049]
[1734376930159,0.55,4041.2,4039.6,0.8049]
[1734376930398,8.76236054,4040.4,4039.6,0.8049]
[1734376930598,8.76236054,4040.4,4038.4,0.7943]
[1734376930770,10.54959945,4040.3,4038.4,0.7943]
[1734376930969,8.76236054,4040.3,4038.4,0.7943]
[1734376932662,0.55,4040.0,4038.4,0.7943]
[1734376932862,0.83286364,4039.9,4038.4,0.7943]
[1734376933063,0.55,4039.7,4038.4,0.7943]
[1734376933260,0.13828636,4039.6,4038.4,0.7943]
[1734376933661,1.56846888,4040.0,4038.4,0.7943]
[1734376933862,2.08207145,4039.9,4038.4,0.7943]
[1734376934109,0.55,4040.0,4038.4,0.7943]
[1734376934327,2.47536,4039.9,4038.4,0.7943]
[1734376934463,8.76236054,4039.4,4038.4,0.7943]
[1734376934658,0.97808294,4039.3,4038.4,0.7943]
[1734376934862,8.76236054,4039.5,4038.4,0.7943]
[1734376936504,8.76236054,4039.7,4038.8,3.3849592]
[1734376936713,8.76236054,4040.5,4039.4,0.7685]
[1734376937018,8.76236054,4040.7,4039.4,3.7685]
[1734376937222,8.76236054,4040.6,4039.4,3.7685]
[1734376937425,0.87623605,4040.5,4039.4,3.7685]
[1734376938467,0.87623605,4040.5,4039.5,0.8329]
[1734376939121,8.76236054,4040.6,4039.9,3.7663]
[1734376939265,8.76236054,4041.3,4040.0,0.7663]
[1734376940122,1.06938138,4041.4,4040.4,0.7663]
[1734376940269,8.76236054,4041.9,4040.4,0.7663]
[1734376940467,8.76236054,4041.9,4041.0,0.7663]
[1734376940867,8.76236054,4042.2,4041.0,0.7663]
[1734376941105,8.76236054,4042.4,4041.1,0.7663]
[1734376941408,0.93389918,4042.3,4041.5,0.803]
[1734376941707,0.93389918,4042.3,4041.5,0.41404687]
[1734376942070,0.88871809,4042.3,4041.5,0.41404687]
[1734376942266,0.88871809,4042.3,4040.6,3.0]
[1734376942596,0.7568,4042.1,4040.0,3.80323287]
[1734376942844,1.01846888,4041.8,4039.5,3.80323287]
[1734376943025,0.55,4041.9,4039.5,3.80323287]
[1734376943026,1.56846888,4041.7,4039.5,3.80323287]
[1734376943372,8.76236054,4041.0,4039.0,3.80323287]
[1734376943908,8.76236054,4040.9,4039.5,3.80323287]
[1734376944712,8.76236054,4041.4,4039.6,3.0]
[1734376944909,8.76236054,4041.4,4040.0,3.80323287]
[1734376945158,0.92801962,4041.3,4040.1,3.0]
[1734376945384,0.92801962,4041.3,4040.2,0.803]
[1734376946217,0.92801962,4041.3,4038.9,0.803]
[1734376946218,0.7568,4041.1,4038.9,0.803]
[1734376946469,0.83283653,4041.0,4038.9,0.803]
[1734376946655,0.83282574,4040.9,4038.9,0.803]
[1734376946856,0.26080946,4040.8,4039.0,0.803]
[1734376948323,0.83298022,4040.7,4039.0,0.803]
[1734376948618,0.26080946,4040.8,4039.0,0.803]
[1734376948820,1.3068,4040.3,4039.0,0.803]
[1734376949048,0.55,4039.9,4039.0,0.803]
[1734376949253,1.22873529,4039.8,4039.0,0.803]
[1734376949469,0.40437189,4039.8,4039.0,0.803]
[1734376951702,0.40437189,4039.8,4037.3,0.7759]
[1734376951703,0.55,4039.4,4037.3,0.7759]
[1734376951984,12.06707054,4039.5,4036.8,1.02138172]
[1734376951985,8.76236054,4039.5,4037.7,0.7759]
[1734376952148,8.76236054,4039.5,4037.6,3.80323287]
[1734376952149,8.76236054,4039.5,4037.9,0.7759]
[1734376953931,0.40437189,4039.8,4037.8,0.45791329]
[1734376953932,0.40437189,4039.8,4038.2,3.0]
[1734376954132,0.40437189,4039.8,4038.3,0.757]
[1734376954379,8.76236054,4040.3,4038.6,3.80323287]
[1734376954581,0.8291,4040.7,4038.6,3.80323287]
[1734376954582,8.76236054,4040.2,4038.8,0.757]
[1734376957228,0.55,4039.9,4038.8,0.757]
[1734376957433,0.55,4039.7,4038.8,0.757]
[1734376957749,0.55,4039.7,4037.6,3.80323287]
[1734376957750,8.76236054,4039.5,4037.7,0.823]
[1734376957947,1.26107653,4039.4,4037.7,0.823]
[1734376958151,2.47569,4039.3,4037.7,0.823]
[1734376958714,2.27954541,4039.4,4036.4,1.02138172]
[1734376958715,1.26107653,4039.4,4038.1,3.80323287]
[1734376958910,8.76236054,4039.5,4038.2,0.8012]
[1734376959252,8.76236054,4039.9,4038.2,1.07637727]
[1734376959489,8.76236054,4039.9,4038.3,0.8012]
[1734376960401,8.76236054,4040.3,4038.3,0.8012]
[1734376962098,9.31236054,4040.0,4038.3,0.8012]
[1734376962249,0.55,4039.8,4038.3,0.8012]
[1734376962449,0.82257523,4039.7,4038.3,0.8012]
[1734376962681,0.55,4039.7,4038.3,0.8012]
[1734376963003,0.55,4039.4,4038.3,0.8012]
[1734376963759,3.62353871,4039.4,4038.3,0.8012]
[1734376963990,0.8220334,4039.3,4038.3,0.8012]
[1734376964163,2.0550745,4039.3,4038.3,0.8012]
[1734376964497,0.82183557,4039.2,4038.3,0.8012]
[1734376964798,0.82183557,4039.2,4036.2,1.02138172]
[1734376964799,8.76236054,4038.5,4036.1,3.38632777]
[1734376964949,2.4763,4038.3,4036.2,0.7807]
[1734376965352,0.55,4038.3,4036.2,0.7807]
[1734376965557,2.47647,4038.0,4036.2,0.7807]
[1734376965767,1.20087305,4037.9,4036.2,0.7807]
[1734376966008,0.55,4037.8,4036.2,0.7807]
[1734376966308,0.55,4037.8,4033.9,0.64219989]
[1734376966309,0.25,4035.2,4033.9,0.64219989]
[1734376966516,0.25,4035.2,4032.7,5.06733009]
[1734376966517,0.25,4032.0,4031.7,0.7807]
[1734376966651,8.76236054,4031.9,4030.1,0.7807]
[1734376966853,0.25,4032.7,4030.3,3.81389137]
[1734376967053,3.81389137,4034.1,4031.0,0.7807]
[1734376967054,1.01932264,4031.9,4031.0,0.7807]
[1734376967348,0.25,4032.2,4030.1,0.12353961]
[1734376967349,1.01932264,4031.5,4030.3,3.75054628]
[1734376967552,1.01932264,4031.2,4029.4,0.43042799]
[1734376967831,0.84289096,4031.1,4030.4,3.81389137]
[1734376968006,1.01932264,4031.6,4030.5,0.38138914]
[1734376968149,2.10031333,4031.5,4030.4,3.81389137]
[1734376968358,2.10007521,4031.4,4030.5,0.43042799]
[1734376968697,2.10007521,4031.4,4029.5,0.02480586]
[1734376968698,1.01932264,4031.2,4029.5,3.81389137]
[1734376968901,1.01932264,4030.9,4029.5,3.81389137]
[1734376969153,1.01932264,4030.5,4029.0,0.1662241]
[1734376969276,1.01932264,4030.3,4029.0,0.1662241]
[1734376969477,1.01932264,4030.3,4030.0,3.81389137]
[1734376969692,2.03894489,4031.3,4030.1,0.81587635]
[1734376969999,2.28894489,4031.6,4030.6,3.81389137]
[1734376970215,1.67133362,4031.7,4031.5,3.81389137]
[1734376970428,2.03894489,4031.9,4031.6,3.81389137]
[1734376970709,0.5,4032.1,4031.6,3.81389137]
[1734376970889,0.25,4031.8,4031.6,3.81389137]
[1734376971218,0.25,4031.8,4031.5,0.7807]
[1734376971430,0.02480606,4031.7,4031.5,0.7807]
[1734376971559,0.25,4031.8,4031.5,0.7807]
[1734376971878,0.25,4031.7,4031.5,0.7807]
[1734376972072,0.92255758,4031.7,4031.5,0.7807]
[1734376972273,0.25,4031.7,4031.5,0.7807]
[1734376973424,0.25,4031.7,4031.0,0.00594673]
[1734376973729,3.70735333,4032.0,4031.6,3.81389137]
[1734376973864,2.28894489,4032.1,4031.6,3.81389137]
[1734376974068,8.76236054,4032.3,4031.7,3.0]
[1734376974262,0.25,4033.0,4031.7,3.0]
[1734376974263,2.03894489,4032.9,4032.2,3.81389137]
[1734376974462,0.25,4032.9,4032.8,3.81389137]
[1734376974682,0.25,4033.1,4032.8,3.81389137]
[1734376974912,8.76236054,4033.2,4032.8,3.81389137]
[1734376975113,0.25,4033.3,4032.8,3.81389137]
[1734376975482,2.28894489,4033.8,4032.8,3.81389137]
[1734376975687,9.01236054,4033.8,4032.8,3.81389137]
[1734376975895,9.01236054,4033.8,4032.4,3.0]
[1734376975896,9.01236054,4033.8,4033.4,3.81389137]
[1734376976217,8.76236054,4033.8,4033.4,3.81389137]
[1734376976382,8.76236054,4033.8,4033.0,3.0]
[1734376976587,8.76236054,4033.8,4033.7,3.81389137]
[1734376976915,0.25,4033.9,4033.2,3.81389137]
[1734376977225,0.25,4033.9,4032.8,3.8225]
[1734376977226,0.25,4033.2,4032.8,0.8225]
[1734376977510,0.5,4033.2,4032.8,0.8225]
[1734376977667,0.25,4033.5,4033.0,3.81389137]
[1734376978288,0.25,4032.7,4032.0,0.8225]
[1734376978616,0.25,4032.4,4032.0,0.8225]
[1734376978814,0.25,4032.3,4031.8,3.81389137]
[1734376978964,0.25,4032.4,4031.8,3.81389137]
[1734376979169,0.25,4032.8,4032.3,3.81389137]
[1734376980371,0.02480606,4032.7,4032.3,3.81389137]
[1734376980726,0.25,4032.8,4032.4,3.81389137]
[1734376981720,0.25,4032.5,4032.4,3.81389137]
[1734376981937,0.5,4032.5,4031.8,3.81389137]
[1734376982067,8.76236054,4033.3,4031.4,0.04876621]
[1734376982068,0.5,4032.0,4031.4,0.04876621]
[1734376982276,0.5,4032.0,4031.2,3.81389137]
[1734376982277,0.02480606,4031.9,4031.2,3.81389137]
[1734376982497,0.5,4032.0,4031.2,1.06089126]
[1734376983083,0.25,4031.6,4031.2,1.06089126]
[1734376983619,0.25,4032.0,4031.2,1.06089126]
[1734376983857,0.25,4032.6,4031.9,3.81389137]
[1734376984125,1.25232444,4033.3,4032.5,3.81389137]
[1734376984343,0.25,4033.5,4033.1,3.81389137]
[1734376984645,0.25,4033.9,4033.1,3.81389137]
[1734376984792,0.25,4034.0,4033.8,3.81389137]
[1734376985251,0.25,4034.4,4033.8,3.81389137]
[1734376985409,0.3719648,4034.4,4034.3,3.81389137]
[1734376985947,0.25,4034.4,4034.3,3.81389137]
[1734376986242,0.25,4034.4,4033.0,3.0]
[1734376986243,0.5,4034.4,4033.7,3.81389137]
[1734376986446,0.5,4034.4,4033.2,0.829]
[1734376986658,0.25,4033.6,4033.5,3.81389137]
[1734376986856,0.5,4034.0,4033.5,3.81389137]
[1734376987232,0.25,4034.3,4033.5,3.81389137]
[1734376987433,0.25,4034.3,4032.6,3.0]
[1734376987434,0.24958274,4034.2,4032.6,3.0]
[1734376987631,0.25,4034.0,4033.5,3.81389137]
[1734376987942,0.25,4033.7,4033.5,3.81389137]
[1734376988118,0.5,4034.0,4033.5,3.81389137]
[1734376989164,0.22503338,4033.9,4033.5,3.81389137]
[1734376989520,0.5,4034.0,4033.5,3.81389137]
[1734376989766,0.22522863,4033.9,4033.5,3.81389137]
[1734376990056,0.22522863,4033.8,4033.5,3.81389137]
[1734376990265,0.22522863,4033.7,4033.5,3.81389137]
[1734376990443,0.22522863,4033.6,4033.5,3.81389137]
[1734376990651,0.22557543,4033.6,4033.5,3.81389137]
[1734376990837,0.5,4034.0,4033.5,3.81389137]
[1734376991173,0.22555286,4033.9,4033.5,3.81389137]
[1734376991314,0.22555286,4033.8,4033.5,3.81389137]
[1734376991515,0.25035892,4033.7,4033.5,3.81389137]
[1734376991818,0.22555286,4033.6,4033.5,3.81389137]
[1734376992022,0.47555286,4033.6,4033.5,3.81389137]
[1734376992269,0.83591867,4033.6,4032.9,3.81389137]
[1734376992421,0.25,4033.0,4032.9,3.81389137]
[1734376992621,0.25,4033.2,4032.9,3.81389137]
[1734376992840,0.22620295,4033.0,4032.9,3.81389137]
[1734376993164,0.47620295,4033.0,4032.3,3.81389137]
[1734376993321,0.43122985,4032.9,4032.3,3.81389137]
[1734376993521,0.54306809,4032.8,4032.3,3.81389137]
[1734376993719,0.58798714,4032.7,4032.3,3.81389137]
[1734376993961,0.58798714,4032.6,4032.3,3.81389137]
[1734376994179,0.58798714,4032.5,4032.3,3.81389137]
[1734376994381,7.14e-06,4032.4,4032.3,3.81389137]
[1734376994932,0.25,4032.9,4032.3,3.81389137]
[1734376995121,0.18157035,4032.8,4032.3,3.81389137]
[1734376995339,0.28951802,4033.2,4032.4,3.0]
[1734376995593,0.18189178,4033.1,4032.9,3.81389137]
[1734376995861,0.25,4033.7,4032.9,3.81389137]
[1734376995862,0.25,4033.6,4032.9,3.81389137]
[1734376996071,0.47280121,4033.4,4032.9,3.81389137]
[1734376996278,0.47280121,4033.3,4033.0,3.81389137]
[1734376996570,0.25,4033.7,4033.1,0.1782]
[1734376996778,0.47343247,4033.6,4033.1,0.1782]
[1734376996929,0.47343247,4033.5,4033.1,0.1782]
[1734376997129,0.47343823,4033.4,4033.1,0.1782]
[1734376997434,0.18208753,4033.3,4032.7,3.81389137]
[1734376997632,0.47337741,4033.2,4032.8,3.0]
[1734376997962,0.47332529,4033.1,4032.8,3.0]
[1734376998260,0.27480606,4033.7,4032.8,3.0]
[1734376998261,0.18208753,4033.0,4032.8,3.0]
[1734376998437,0.18208753,4032.9,4032.7,3.81389137]
[1734376998632,0.29123171,4033.6,4032.7,3.81389137]
[1734376998833,0.25,4033.7,4032.7,3.81389137]
[1734376998834,0.47326031,4033.5,4032.7,3.81389137]
[1734376999031,0.47326031,4033.4,4032.7,3.81389137]
[1734376999234,0.47326031,4033.3,4032.7,4.19528051]
[1734376999540,0.25,4033.7,4032.7,4.19528051]
[1734376999541,0.1820286,4033.2,4032.7,4.19528051]
[1734376999859,0.1820286,4033.1,4032.7,4.19528051]
[1734377000165,0.25,4033.9,4032.7,3.81389137]
[1734377000166,0.1820286,4033.0,4032.7,3.81389137]
[1734377000391,0.29141469,4033.8,4032.7,3.81389137]
[1734377000664,0.47362019,4033.7,4032.7,3.81389137]
[1734377000886,0.47362019,4033.6,4032.7,3.81389137]
[1734377001384,0.47362019,4033.5,4033.2,3.81389137]
[1734377001586,0.18216161,4033.4,4033.2,3.81389137]
[1734377001721,0.18216161,4033.3,4032.7,3.0]
[1734377001926,0.18216161,4033.3,4032.1,3.0]
[1734377001927,0.18216161,4033.2,4032.1,3.0]
[1734377002135,0.18216161,4033.1,4032.3,0.01]
[1734377002360,0.25,4033.3,4032.3,0.01]
[1734377002361,0.47345301,4033.0,4032.3,0.01]
[1734377002522,0.47345301,4032.9,4032.3,0.01]
[1734377002724,0.47345301,4032.9,4032.1,3.0]
[1734377002725,0.29148139,4032.8,4032.1,3.0]
[1734377002923,0.47365726,4032.7,4032.1,3.68138914]
[1734377003193,0.47365726,4032.6,4032.1,3.68138914]
[1734377003364,0.47365726,4032.5,4032.1,3.68138914]
[1734377003537,0.47365726,4032.4,4032.1,3.68138914]
[1734377003734,0.47379241,4032.3,4032.1,3.68138914]
[1734377003935,0.18217587,4032.2,4032.1,3.68138914]
[1734377004427,0.18217587,4032.2,4032.1,3.0]
[1734377004763,5.87e-06,4032.2,4032.1,3.55]
[1734377004926,0.02480606,4034.1,4032.2,0.55]
[1734377004927,0.2916184,4033.6,4032.2,0.55]
[1734377005127,0.2916184,4033.5,4032.9,3.81389137]
[1734377005428,8.4e-06,4033.4,4032.6,0.40292799]
[1734377005635,8.4e-06,4033.4,4032.3,0.02479227]
[1734377005636,0.25,4034.3,4032.3,0.02478994]
[1734377005851,0.25,4034.3,4033.2,3.81389137]
[1734377006073,0.25,4034.3,4033.3,3.0]
[1734377006480,0.25,4034.3,4032.7,3.0]
[1734377006481,0.25,4033.7,4032.7,3.0]
[1734377007572,0.25,4033.7,4032.6,3.81389137]
[1734377007772,0.02480606,4033.6,4032.6,2.78199857]
[1734377007979,0.02480606,4033.6,4032.6,3.06019843]
[1734377008193,0.02480606,4033.6,4032.6,2.78199857]
[1734377008349,0.25,4033.4,4032.6,2.78199857]
[1734377008734,0.27480606,4033.4,4032.6,2.78199857]
[1734377009164,0.27480606,4033.4,4032.0,3.81389137]
[1734377009486,0.25,4032.1,4030.8,3.81389137]
[1734377009680,0.25,4031.9,4030.8,3.81389137]
[1734377010036,0.25,4031.9,4030.6,0.01]
[1734377010037,0.25,4031.4,4030.7,3.39732971]
[1734377010440,0.25,4031.4,4030.2,3.39732971]
[1734377010441,1.65623343,4031.3,4030.2,3.39732971]
[1734377010681,0.8161,4031.3,4030.2,3.73706268]
[1734377011058,0.25,4031.4,4030.2,3.73706268]
[1734377011791,0.25,4031.4,4029.7,3.39732971]
[1734377011792,0.5,4030.6,4029.7,3.39732971]
[1734377011951,0.5,4030.6,4029.2,3.8245054]
[1734377012152,0.25,4030.3,4029.2,3.8245054]
[1734377013268,1.25232444,4030.6,4029.2,3.8245054]
[1734377013451,2.09972537,4030.5,4029.2,3.8245054]
[1734377013653,0.25,4030.3,4029.7,3.8245054]
[1734377013981,1.00232444,4030.6,4029.7,3.8245054]
[1734377014181,0.25,4030.3,4029.7,3.8245054]
[1734377014383,0.25,4030.7,4029.7,3.8245054]
[1734377014694,0.64225454,4031.1,4030.4,3.0]
[1734377014896,0.25,4031.2,4030.5,0.68245054]
[1734377015190,0.25,4031.2,4030.3,3.8245054]
[1734377015389,0.25,4030.0,4029.2,3.8245054]
[1734377017112,0.25,4030.0,4029.3,3.0]
[1734377017314,0.25,4030.0,4029.3,3.69907295]
[1734377017452,0.25,4030.7,4029.3,3.69907295]
[1734377017889,0.25,4030.7,4029.8,3.0]
[1734377018518,0.25,4030.4,4029.8,3.0]
[1734377018673,0.25,4030.7,4029.8,3.0]
[1734377019300,0.25,4030.4,4029.2,3.0]
[1734377019613,0.25,4030.4,4029.3,0.69907295]
[1734377019920,0.25,4030.7,4029.3,0.69907295]
[1734377020136,8.76236054,4031.0,4029.8,3.0]
[1734377020137,0.25,4031.0,4029.8,3.0]
[1734377020409,0.25,4030.5,4029.8,3.0]
[1734377022037,0.813,4031.1,4029.8,3.0]
[1734377022038,0.00724,4031.0,4029.8,3.0]
[1734377022177,8.76236054,4031.7,4029.8,3.0]
[1734377022178,0.00724,4031.4,4030.4,3.0]
[1734377022379,0.00724,4031.1,4029.9,0.68245054]
[1734377022817,0.00724,4030.7,4029.9,0.68245054]
[1734377022978,0.00724,4030.7,4029.8,3.0]
[1734377023179,0.00724,4031.5,4030.5,3.0]
[1734377023723,0.7967,4031.7,4030.5,3.0]
[1734377024123,0.00724,4031.8,4030.5,3.0]
[1734377024688,0.8231,4032.2,4031.7,3.0]
[1734377024997,0.00724,4032.3,4031.7,3.0]
[1734377025587,0.00724,4032.6,4031.7,3.0]
[1734377025837,8.76236054,4033.9,4032.2,3.8245054]
[1734377026044,0.00724,4033.1,4032.3,3.02479869]
[1734377026262,0.00724,4033.4,4032.3,3.02479869]
[1734377026553,1.01295567,4034.8,4032.3,3.02479869]
[1734377026554,0.00724,4033.6,4032.9,3.0]
[1734377027297,0.00724,4033.6,4032.8,3.8245054]
[1734377027298,0.00724,4033.2,4032.3,3.0]
[1734377027604,0.00724,4033.6,4032.4,0.68245054]
[1734377027805,0.00724,4033.6,4032.9,3.0]
[1734377028744,0.00724,4033.9,4032.9,3.0]
[1734377029810,0.00724,4034.2,4033.5,3.0]
[1734377031384,0.00724,4034.2,4032.9,3.0]
[1734377031385,0.00724,4033.7,4032.9,3.0]
[1734377031513,0.00724,4033.7,4032.8,3.8245054]
[1734377032634,0.00724,4032.9,4032.2,3.8245054]
[1734377032840,0.00724,4033.2,4032.8,3.8245054]
[1734377033119,0.7994,4034.2,4033.1,3.8245054]
[1734377033376,0.00724,4034.0,4033.1,3.8245054]
[1734377033684,0.00724,4033.6,4033.1,3.8245054]
[1734377033889,0.00724,4033.5,4032.5,3.8245054]
[1734377034065,0.00724,4033.5,4031.0,0.24276]
[1734377034066,0.00724,4033.8,4033.1,4.22743339]
[1734377034577,0.00724,4033.9,4033.2,0.40292799]
[1734377034778,0.00724,4033.9,4033.7,3.8245054]
[1734377034947,0.00724,4033.9,4033.7,3.5749054]
[1734377035148,0.7994,4034.2,4033.7,3.5749054]
[1734377035149,0.80664,4034.2,4033.7,3.5749054]
[1734377035493,8.76236054,4033.8,4033.2,0.40292799]
[1734377035783,8.76236054,4033.8,4031.1,3.8245054]
[1734377035784,0.00724,4031.6,4031.1,3.8245054]
[1734377035987,0.7778,4032.7,4031.1,3.8245054]
[1734377035988,0.00724,4031.9,4031.1,3.8245054]
[1734377036141,0.00724,4031.6,4031.2,3.39667822]
[1734377037136,0.00724,4032.1,4031.2,3.39667822]
[1734377037338,0.00724,4032.1,4031.7,3.39667822]
[1734377037835,0.7796,4032.4,4031.7,3.39667822]
[1734377037836,0.00724,4031.8,4031.7,3.39667822]
[1734377038065,0.00724,4031.5,4030.9,3.82151382]
[1734377038881,0.00724,4031.5,4029.6,0.32409777]
[1734377038882,0.80984,4029.2,4028.3,3.82151382]
[1734377039072,4.01295567,4031.8,4027.5,1.5495891]
[1734377039073,0.00724,4029.5,4028.9,3.82151382]
[1734377039287,0.00724,4029.8,4029.1,0.02481793]
[1734377039514,0.00724,4029.7,4029.5,3.82151382]
[1734377039853,0.00724,4029.2,4028.9,3.82151382]
[1734377041202,0.00724,4030.3,4029.1,0.7918]
[1734377041379,0.00724,4030.7,4030.2,3.82151382]
[1734377044316,0.00724,4031.1,4030.3,3.0]
[1734377044471,0.00724,4031.4,4030.8,3.82151382]
[1734377045633,0.00724,4031.4,4030.9,3.0]
[1734377045786,0.00724,4031.4,4030.4,0.7935]
[1734377046314,0.00724,4031.8,4030.9,3.0]
[1734377046532,0.00724,4031.8,4030.9,3.02480147]
[1734377046746,0.00724,4031.8,4030.9,3.0]
[1734377046869,0.00724,4031.8,4031.0,0.68215138]
[1734377048226,0.00724,4031.3,4030.4,0.7935]
[1734377048724,0.00724,4031.9,4030.8,3.82151382]
[1734377048942,0.7684,4032.5,4030.9,3.02480143]
[1734377049227,0.00724,4031.7,4030.9,3.0]
[1734377049521,0.00724,4031.7,4030.5,0.55]
[1734377049827,0.77564,4032.5,4031.5,3.7813]
[1734377050033,0.00724,4032.7,4031.5,3.7813]
[1734377050259,0.00724,4033.3,4032.7,3.7813]
[1734377050526,0.8281,4034.8,4032.7,3.7813]
[1734377050527,0.00724,4033.9,4032.8,0.0247911]
[1734377050710,0.00724,4034.4,4033.9,3.0]
[1734377050921,0.00724,4034.8,4033.9,3.0]
[1734377051872,0.00724,4034.5,4033.9,3.0]
[1734377052072,0.00724,4034.5,4033.3,3.7745]